bitfinex/quotes_SOLUSD_20250316
["timestamp","ask_amount","ask_price","bid_price","bid_amount"]
[1742147425357,0.063,129.46,129.45,35.12174553]
[1742147426070,0.063,129.46,129.45,41.30164553]
[1742147427082,0.063,129.46,129.45,41.4438071]
[1742147427683,0.063,129.46,129.45,122.2437071]
[1742147430385,0.063,129.46,129.45,434.2437071]
[1742147432569,0.063,129.46,129.45,122.2437071]
[1742147434965,0.063,129.46,129.45,125.1172111]
[1742147435167,0.063,129.46,129.45,119.22976512]
[1742147435577,0.063,129.46,129.45,431.22976512]
[1742147438689,0.063,129.46,129.45,119.22976512]
[1742147441391,0.063,129.46,129.45,113.04986512]
[1742147441595,0.063,129.46,129.45,21.66531443]
[1742147441775,0.063,129.46,129.45,38.28770355]
[1742147442285,0.063,129.46,129.45,38.42986512]
[1742147444593,0.063,129.46,129.45,350.42986512]
[1742147445368,0.063,129.46,129.45,431.22976512]
[1742147446295,0.0001,129.47,129.46,18.933972]
[1742147446593,0.0001,129.47,129.46,37.51442531]
[1742147447193,0.063,129.54,129.46,168.27918179]
[1742147447393,0.063,129.54,129.52,29.09213798]
[1742147448194,0.063,129.54,129.52,35.26863798]
[1742147448576,0.063,129.54,129.52,18.64964886]
[1742147448902,10.44248912,129.53,129.49,18.79181043]
[1742147449313,0.063,129.54,129.49,29.23429955]
[1742147449687,10.50548912,129.54,129.49,35.41229955]
[1742147449979,10.50548912,129.54,129.49,29.23429955]
[1742147450206,6.1761,129.53,129.49,29.23429955]
[1742147451005,0.063,129.54,129.52,10.44248912]
[1742147451301,0.063,129.54,129.51,0.14216157]
[1742147451797,0.063,129.54,129.52,18.64964886]
[1742147452395,0.063,129.54,129.51,18.79181043]
[1742147452690,0.063,129.54,129.51,41.27516989]
[1742147453198,0.063,129.54,129.52,16.30645946]
[1742147453410,0.063,129.54,129.51,41.27516989]
[1742147453901,0.063,129.54,129.53,16.44862103]
[1742147454587,0.063,129.54,129.53,0.14216157]
[1742147456381,27.53746208,129.58,129.54,18.64964886]
[1742147456604,16.30645946,129.57,129.54,18.64964886]
[1742147457226,27.53746208,129.58,129.54,18.64964886]
[1742147458379,5.05710262,129.58,129.54,41.13170832]
[1742147458580,0.063,129.59,129.56,18.64964886]
[1742147458903,0.063,129.59,129.58,18.64964886]
[1742147459403,16.36945946,129.59,129.55,18.79181043]
[1742147460200,0.063,129.59,129.55,35.09826989]
[1742147460603,0.063,129.59,129.58,18.64964886]
[1742147461392,0.063,129.59,129.56,0.14216157]
[1742147461601,22.54275946,129.59,129.56,18.64964886]
[1742147461905,0.063,129.59,129.57,0.14216157]
[1742147463097,0.063,129.59,129.57,18.79181043]
[1742147463295,0.063,129.59,129.58,16.5907826]
[1742147464490,0.063,129.59,129.58,41.41413146]
[1742147465099,0.063,129.59,129.58,42.57120687]
[1742147465611,0.063,129.59,129.58,123.37110687]
[1742147465797,0.03,129.63,129.59,18.933972]
[1742147465992,0.03,129.63,129.61,34.95610832]
[1742147466192,0.03,129.63,129.62,35.09826989]
[1742147466810,0.03,129.63,129.62,41.41223146]
[1742147469413,0.03,129.63,129.62,48.37223146]
[1742147469591,0.03,129.63,129.62,136.93533146]
[1742147469797,0.03,129.63,129.62,138.09181656]
[1742147470018,0.0001,129.63,129.62,138.09181656]
[1742147470214,0.0001,129.63,129.62,450.59181656]
[1742147470519,0.0001,129.63,129.62,449.43533146]
[1742147470720,0.0001,129.63,129.62,448.93533146]
[1742147471292,0.0001,129.63,129.62,122.21213146]
[1742147471519,0.0001,129.63,129.62,116.04033146]
[1742147472018,0.0001,129.63,129.62,122.21213146]
[1742147472398,0.0001,129.63,129.62,116.04033146]
[1742147473112,0.0001,129.63,129.62,122.21213146]
[1742147474417,0.0001,129.63,129.62,434.21213146]
[1742147475723,0.0001,129.63,129.62,122.21213146]
[1742147476536,0.0001,129.63,129.62,116.04033146]
[1742147477631,0.0001,129.63,129.62,35.24043146]
[1742147478924,16.33645946,129.66,129.62,18.79181043]
[1742147479115,16.30645946,129.64,129.61,18.64964886]
[1742147479312,16.30645946,129.63,129.61,18.64964886]
[1742147479527,16.30645946,129.63,129.59,18.79181043]
[1742147479728,22.47815946,129.63,129.59,18.79181043]
[1742147479928,16.30645946,129.63,129.59,24.96501043]
[1742147480135,42.47755946,129.64,129.59,41.27146989]
[1742147480332,26.1711,129.64,129.59,35.09826989]
[1742147480521,42.47755946,129.64,129.59,35.09826989]
[1742147481635,42.47755946,129.64,129.59,41.27146989]
[1742147482272,16.30645946,129.63,129.59,18.79181043]
[1742147482814,16.30645946,129.63,129.59,0.14216157]
[1742147483036,16.30645946,129.62,129.58,0.14216157]
[1742147483247,16.30645946,129.62,129.57,34.95610832]
[1742147483419,16.30645946,129.61,129.57,18.64964886]
[1742147483820,16.30645946,129.62,129.57,41.13020832]
[1742147484133,22.47795946,129.63,129.59,18.64964886]
[1742147485323,16.30645946,129.62,129.58,0.14216157]
[1742147485538,16.30645946,129.62,129.58,18.79181043]
[1742147486419,16.30645946,129.62,129.59,0.03]
[1742147487524,0.063,129.63,129.6,16.30645946]
[1742147487723,0.063,129.63,129.61,16.30645946]
[1742147488126,0.063,129.63,129.6,16.30645946]
[1742147488327,0.063,129.63,129.61,34.95610832]
[1742147489019,0.063,129.63,129.61,16.30645946]
[1742147489441,0.063,129.63,129.61,22.47865946]
[1742147489643,0.063,129.63,129.62,16.44862103]
[1742147489830,0.063,129.63,129.62,35.09826989]
[1742147490038,0.063,129.63,129.62,35.24043146]
[1742147491145,0.063,129.67,129.64,0.14216157]
[1742147491440,0.063,129.67,129.66,41.26816989]
[1742147491638,0.063,129.67,129.66,41.41033146]
[1742147494218,0.063,129.67,129.66,42.56669209]
[1742147494835,0.063,129.67,129.66,58.87315155]
[1742147495623,0.063,129.67,129.66,42.56669209]
[1742147496626,0.063,129.67,129.66,18.933972]
[1742147496833,0.063,129.67,129.66,18.79181043]
[1742147497141,0.063,129.67,129.66,35.09826989]
[1742147497844,0.063,129.67,129.66,18.933972]
[1742147498036,0.063,129.67,129.66,41.41033146]
[1742147498742,0.063,129.67,129.66,35.24043146]
[1742147499041,0.063,129.67,129.66,41.41033146]
[1742147500048,0.063,129.67,129.66,122.21023146]
[1742147502644,0.063,129.69,129.67,18.933972]
[1742147502827,0.063,129.7,129.69,18.933972]
[1742147503027,0.063,129.7,129.64,6.1709]
[1742147503028,16.36945946,129.7,129.64,6.1709]
[1742147503227,16.36945946,129.7,129.66,0.14216157]
[1742147503228,16.30645946,129.69,129.66,0.14216157]
[1742147503745,16.30645946,129.68,129.65,18.64964886]
[1742147504451,16.30645946,129.68,129.64,0.14216157]
[1742147504638,16.30645946,129.68,129.64,18.79181043]
[1742147506038,16.30645946,129.68,129.64,24.96261043]
[1742147506236,1.5827,129.7,129.65,16.44862103]
[1742147506426,17.88915946,129.7,129.65,16.44862103]
[1742147506625,16.30645946,129.68,129.64,18.79181043]
[1742147506938,16.30645946,129.67,129.63,18.79181043]
[1742147510848,16.30645946,129.64,129.62,18.67964886]
[1742147511045,16.30645946,129.65,129.62,0.03]
[1742147511555,16.30645946,129.65,129.62,6.2016]
[1742147511749,16.30645946,129.65,129.63,0.063]
[1742147512054,16.30645946,129.66,129.63,0.20516157]
[1742147512238,0.03,129.69,129.63,35.16126989]
[1742147512239,16.30645946,129.67,129.63,35.16126989]
[1742147512437,16.30645946,129.67,129.63,18.85481043]
[1742147513137,36.30645946,129.68,129.63,35.16126989]
[1742147513354,36.30645946,129.68,129.64,16.30645946]
[1742147514156,16.30645946,129.67,129.63,0.063]
[1742147515158,16.30645946,129.67,129.63,6.2343]
[1742147515555,20.0,129.68,129.64,16.30645946]
[1742147515753,20.0,129.68,129.65,16.30645946]
[1742147515953,0.03,129.69,129.67,16.30645946]
[1742147517553,0.03,129.69,129.68,6.169]
[1742147521458,0.03,129.69,129.68,41.26726989]
[1742147522246,0.03,129.69,129.68,6.169]
[1742147522443,0.03,129.69,129.68,22.47545946]
[1742147523142,0.03,129.69,129.68,41.26726989]
[1742147524845,0.03,129.69,129.68,41.40943146]
[1742147526667,0.063,129.7,129.69,18.933972]
[1742147526862,0.03,129.72,129.69,42.20043146]
[1742147527060,0.03,129.72,129.71,35.09826989]
[1742147527567,0.03,129.72,129.71,35.24043146]
[1742147527869,0.0001,129.72,129.71,133.50274345]
[1742147528364,0.0001,129.72,129.71,139.67034345]
[1742147528751,0.0001,129.73,129.72,51.54689092]
[1742147528950,0.0001,129.73,129.72,132.34679092]
[1742147529870,0.0001,129.73,129.72,444.34679092]
[1742147530459,0.0001,129.73,129.72,450.51389092]
[1742147531570,0.063,129.74,129.72,450.51389092]
[1742147531757,0.063,129.74,129.73,35.09826989]
[1742147532172,0.063,129.74,129.73,36.39609186]
[1742147532474,0.063,129.74,129.73,44.15829186]
[1742147532672,0.063,129.74,129.73,43.00263146]
[1742147532873,0.063,129.74,129.73,41.40703146]
[1742147533469,0.063,129.74,129.73,35.09826989]
[1742147534352,0.063,129.74,129.73,41.40703146]
[1742147534674,0.063,129.74,129.73,42.56263484]
[1742147536375,0.063,129.74,129.73,354.56263484]
[1742147536576,0.063,129.74,129.73,353.40703146]
[1742147537283,0.063,129.74,129.73,41.40703146]
[1742147537465,0.063,129.74,129.73,35.09826989]
[1742147538672,0.063,129.74,129.73,41.26486989]
[1742147538973,0.063,129.74,129.73,41.40703146]
[1742147543372,0.063,129.74,129.73,41.26486989]
[1742147544080,0.063,129.74,129.73,35.09826989]
[1742147544466,0.063,129.74,129.73,41.26486989]
[1742147545582,0.063,129.74,129.73,35.09826989]
[1742147546366,0.063,129.74,129.73,41.26486989]
[1742147549062,0.063,129.74,129.73,35.35696378]
[1742147549866,0.063,129.74,129.73,35.49912535]
[1742147551075,0.063,129.74,129.73,41.34613244]
[1742147556187,0.063,129.74,129.73,35.03737087]
[1742147558905,0.063,129.74,129.73,41.20397087]
[1742147559783,0.063,129.74,129.73,35.03737087]
[1742147561278,0.063,129.74,129.73,41.20397087]
[1742147562496,0.063,129.74,129.73,35.03737087]
[1742147564201,0.063,129.74,129.73,41.20397087]
[1742147564810,0.063,129.74,129.73,35.03737087]
[1742147565202,0.063,129.74,129.73,41.20397087]
[1742147566793,0.063,129.74,129.72,0.063]
[1742147567882,16.96186044,129.76,129.72,0.063]
[1742147568579,16.24556044,129.75,129.72,0.063]
[1742147568781,6.1661,129.74,129.72,0.063]
[1742147571483,16.24556044,129.73,129.72,0.063]
[1742147572601,22.41216044,129.73,129.72,0.063]
[1742147573195,16.57964644,129.73,129.72,0.063]
[1742147574485,16.57924644,129.74,129.72,0.063]
[1742147574689,6.1662,129.74,129.72,0.063]
[1742147575401,16.57924644,129.74,129.72,0.063]
[1742147576194,6.1662,129.74,129.72,0.063]
[1742147576505,10.41304644,129.75,129.72,0.063]
[1742147576697,0.7463,129.76,129.73,10.41304644]
[1742147578507,0.03,129.76,129.75,10.41304644]
[1742147578687,0.03,129.76,129.75,29.20485687]
[1742147578891,0.03,129.76,129.75,35.37055687]
[1742147579689,0.03,129.76,129.75,29.20485687]
[1742147580088,0.03,129.76,129.75,35.37055687]
[1742147581098,0.03,129.76,129.75,41.20401777]
[1742147581788,0.03,129.76,129.75,35.03831777]
[1742147582193,0.03,129.76,129.75,41.20401777]
[1742147584514,0.03,129.76,129.75,16.24650734]
[1742147584708,0.03,129.76,129.75,16.30950734]
[1742147586309,0.03,129.76,129.75,22.47520734]
[1742147586607,0.03,129.76,129.75,54.82581777]
[1742147586813,0.03,129.76,129.75,54.96797934]
[1742147588106,0.03,129.76,129.75,38.721472]
[1742147590296,0.03,129.76,129.75,54.96797934]
[1742147590611,0.03,129.76,129.75,48.66011777]
[1742147590916,0.03,129.76,129.75,42.04131777]
[1742147591293,0.03,129.76,129.75,16.30950734]
[1742147592999,0.03,129.76,129.75,16.45166891]
[1742147593414,0.03,129.76,129.75,16.30950734]
[1742147595318,0.03,129.76,129.75,0.063]
[1742147597827,6.1952,129.76,129.75,0.063]
[1742147598017,22.44170734,129.76,129.75,0.063]
[1742147598807,30.31286891,129.76,129.75,0.063]
[1742147599013,30.31286891,129.76,129.75,0.0001]
[1742147601331,24.47449467,129.76,129.75,0.0001]
[1742147601623,31.41449467,129.76,129.75,0.0001]
[1742147604626,25.0559331,129.76,129.75,0.0001]
[1742147605529,6.97,129.76,129.75,0.0001]
[1742147605717,20.03,129.76,129.75,0.0001]
[1742147606217,26.1952,129.76,129.75,0.0001]
[1742147607026,36.6033331,129.76,129.75,0.0001]
[1742147609234,36.74549467,129.76,129.75,0.0001]
[1742147611927,26.33736157,129.76,129.75,0.0001]
[1742147612127,36.74549467,129.76,129.75,0.0001]
[1742147613241,26.1952,129.76,129.75,0.0001]
[1742147615324,0.03,129.76,129.75,0.0001]
[1742147623933,10.4381331,129.76,129.75,0.0001]
[1742147624646,0.03,129.76,129.75,0.0001]
[1742147633242,0.03,129.76,129.75,10.4082331]
[1742147633844,0.03,129.76,129.75,16.5739331]
[1742147634955,0.03,129.76,129.75,10.4082331]
[1742147637740,0.03,129.76,129.75,16.5739331]
[1742147639368,0.03,129.76,129.75,35.5079051]
[1742147639538,0.03,129.81,129.78,10.4081331]
[1742147639738,0.03,129.81,129.76,20.21004886]
[1742147639739,0.03,129.81,129.79,10.4081331]
[1742147639933,0.03,129.81,129.78,10.4081331]
[1742147640158,0.03,129.81,129.77,10.4081331]
[1742147640560,10.4081331,129.8,129.75,10.4082331]
[1742147640933,10.4081331,129.79,129.75,0.0001]
[1742147641138,30.4081331,129.79,129.75,0.0001]
[1742147641338,6.1642,129.78,129.75,0.0001]
[1742147648146,16.5723331,129.78,129.75,0.0001]
[1742147648444,10.4081331,129.77,129.75,0.0001]
[1742147649163,6.1649,129.77,129.75,0.0001]
[1742147653070,10.4081331,129.76,129.75,0.0001]
[1742147653749,10.4081331,129.77,129.75,0.0001]
[1742147654560,20.0,129.76,129.75,0.0001]
[1742147655367,26.1652,129.76,129.75,0.0001]
[1742147656165,20.0,129.76,129.75,0.0001]
[1742147657671,26.1652,129.76,129.75,0.0001]
[1742147657968,36.5733331,129.76,129.75,0.0001]
[1742147658153,36.71549467,129.76,129.75,0.0001]
[1742147660455,43.63549467,129.76,129.75,0.0001]
[1742147660655,45.29999467,129.76,129.75,0.0001]
[1742147667874,25.29999467,129.76,129.75,0.0001]
[1742147668673,25.32999467,129.76,129.75,0.0001]
[1742147671359,25.47215624,129.76,129.75,0.0001]
[1742147672479,44.6218051,129.76,129.75,0.0001]
[1742147673983,67.8018051,129.76,129.75,0.0001]
[1742147675464,0.28432314,129.73,129.72,0.0001]
[1742147675666,10.69245624,129.73,129.72,0.0001]
[1742147675884,16.85905624,129.73,129.72,0.0001]
[1742147676579,35.5087051,129.73,129.72,0.0001]
[1742147677182,16.85905624,129.73,129.72,0.0001]
[1742147677490,36.71689467,129.73,129.72,0.0001]
[1742147679091,16.85905624,129.73,129.72,0.0001]
[1742147679463,36.71689467,129.73,129.72,0.0001]
[1742147679775,16.71689467,129.73,129.72,0.0001]
[1742147680773,36.71689467,129.73,129.72,0.0001]
[1742147691001,26.30876157,129.73,129.72,0.0001]
[1742147691201,36.71689467,129.73,129.72,0.0001]
[1742147693800,36.74689467,129.73,129.72,0.0001]
[1742147694901,26.33876157,129.73,129.72,0.0001]
[1742147695197,26.1966,129.73,129.72,0.0001]
[1742147696900,0.03,129.73,129.72,18.3284331]
[1742147697200,0.03,129.73,129.72,59.9609655]
[1742147697695,0.03,129.73,129.72,18.3284331]
[1742147699008,0.03,129.73,129.72,24.4955331]
[1742147699795,0.03,129.73,129.72,66.1280655]
[1742147700586,0.03,129.73,129.72,24.4955331]
[1742147701093,0.03,129.73,129.72,18.3284331]
[1742147701812,0.03,129.73,129.72,66.1280655]
[1742147702186,0.03,129.73,129.72,24.4955331]
[1742147705180,0.03,129.73,129.72,66.1280655]
[1742147705399,0.03,129.73,129.72,24.4955331]
[1742147707617,0.03,129.73,129.72,84.91987593]
[1742147708913,0.03,129.73,129.72,24.4955331]
[1742147709307,0.03,129.73,129.72,18.3284331]
[1742147711489,0.03,129.73,129.72,11.9200331]
[1742147711718,0.03,129.73,129.72,0.0001]
[1742147712400,0.03,129.73,129.72,10.4082331]
[1742147713920,0.03,129.73,129.72,16.5753331]
[1742147715717,0.03,129.73,129.72,18.1094331]
[1742147718821,6.6325331,129.79,129.72,18.1094331]
[1742147719017,6.6325331,129.79,129.74,10.4081331]
[1742147720626,6.1644,129.78,129.74,10.4081331]
[1742147720807,16.5725331,129.78,129.74,10.4081331]
[1742147721005,10.4081331,129.77,129.72,11.9423331]
[1742147721309,16.5725331,129.78,129.73,10.4081331]
[1742147721620,31.9831331,129.78,129.73,10.4081331]
[1742147723521,6.1644,129.78,129.74,10.4081331]
[1742147724201,16.5725331,129.78,129.74,10.4081331]
[1742147724620,16.5725331,129.78,129.73,10.4081331]
[1742147726004,16.5725331,129.78,129.74,10.4081331]
[1742147727524,6.1644,129.78,129.74,10.4081331]
[1742147727827,6.1644,129.78,129.75,10.4081331]
[1742147728023,6.1644,129.78,129.74,10.4081331]
[1742147729223,6.1944,129.78,129.74,10.4081331]
[1742147729608,0.03,129.78,129.74,10.4081331]
[1742147730127,20.0,129.77,129.76,10.4081331]
[1742147730315,0.03,129.78,129.76,10.4081331]
[1742147730511,0.03,129.78,129.77,10.4081331]
[1742147730717,0.03,129.78,129.76,10.4081331]
[1742147731927,0.03,129.78,129.77,10.4081331]
[1742147734434,0.03,129.78,129.76,10.4081331]
[1742147739146,0.03,129.78,129.75,10.4081331]
[1742147739341,0.03,129.78,129.74,10.4081331]
[1742147740048,0.03,129.78,129.75,10.4081331]
[1742147740940,0.03,129.78,129.75,10.4711331]
[1742147742223,0.03,129.78,129.75,0.063]
[1742147742635,0.03,129.78,129.75,10.4711331]
[1742147746351,0.03,129.78,129.76,10.4081331]
[1742147747748,0.03,129.78,129.75,6.2285]
[1742147747749,0.03,129.78,129.77,10.4081331]
[1742147749552,0.03,129.78,129.77,16.5728331]
[1742147751758,0.03,129.78,129.77,10.4081331]
[1742147758962,0.03,129.78,129.75,25.02041043]
[1742147759167,0.03,129.78,129.77,10.4081331]
[1742147763461,0.03,129.78,129.77,16.5728331]
[1742147765266,0.03,129.78,129.77,16.6358331]
[1742147765446,0.03,129.78,129.77,35.42764353]
[1742147766262,0.03,129.79,129.78,18.933972]
[1742147766452,0.03,129.81,129.78,30.49738712]
[1742147767274,0.03,129.81,129.8,20.0]
[1742147767501,0.03,129.81,129.8,26.1633]
[1742147767974,0.03,129.87,129.81,18.933972]
[1742147768164,0.03,129.87,129.85,10.4081331]
[1742147769578,0.03,129.87,129.85,35.36084353]
[1742147770085,0.03,129.87,129.85,10.4081331]
[1742147770758,0.03,129.87,129.85,10.55029467]
[1742147771266,0.03,129.87,129.85,10.4081331]
[1742147772861,0.03,129.87,129.85,16.71119467]
[1742147775886,0.03,129.86,129.85,10.4081331]
[1742147776884,0.03,129.86,129.84,10.4081331]
[1742147777861,0.03,129.86,129.82,80.7999]
[1742147778063,0.03,129.86,129.82,10.4081331]
[1742147778264,0.03,129.86,129.83,10.4081331]
[1742147779263,6.1904,129.86,129.83,10.4081331]
[1742147781362,6.1904,129.86,129.84,10.4081331]
[1742147783482,0.03,129.86,129.83,10.4081331]
[1742147784088,16.8523331,129.86,129.82,10.4081331]
[1742147784276,16.8523331,129.86,129.81,10.4081331]
[1742147784678,10.4081331,129.85,129.81,10.4081331]
[1742147784879,10.4081331,129.84,129.8,10.4081331]
[1742147785673,12.0574331,129.85,129.8,10.4081331]
[1742147787388,12.0574331,129.85,129.81,10.4081331]
[1742147787869,1.6493,129.85,129.82,10.4081331]
[1742147788070,20.0,129.84,129.83,10.4081331]
[1742147788877,20.0,129.85,129.83,10.4081331]
[1742147789075,20.0,129.85,129.84,10.4081331]
[1742147789479,0.03,129.86,129.84,10.4081331]
[1742147789802,0.03,129.86,129.85,16.71119467]
[1742147790099,0.03,129.86,129.85,35.36084353]
[1742147792105,0.03,129.86,129.85,36.93494353]
[1742147795202,0.03,129.89,129.86,18.933972]
[1742147795388,0.03,129.89,129.88,52.0406655]
[1742147796196,0.03,129.89,129.88,58.2001655]
[1742147798810,20.0,129.95,129.88,92.5329375]
[1742147799017,20.0,129.95,129.94,10.4081331]
[1742147799920,3.340215,129.97,129.94,10.4081331]
[1742147800079,20.0,129.96,129.95,10.4081331]
[1742147800279,3.340215,129.97,129.95,10.4081331]
[1742147800921,3.340215,129.97,129.96,10.4081331]
[1742147802708,3.340215,129.97,129.96,76.98817593]
[1742147803309,3.340215,129.97,129.96,77.1303375]
[1742147804511,3.340215,129.97,129.96,29.19994353]
[1742147805091,3.340215,129.97,129.96,37.68508432]
[1742147805313,3.340215,129.97,129.96,18.89327389]
[1742147807687,3.340215,129.97,129.96,19.03543546]
[1742147812002,3.340215,129.97,129.96,18.89327389]
[1742147812706,3.370215,129.97,129.96,18.89327389]
[1742147813212,3.370215,129.97,129.96,37.68508432]
[1742147816416,3.370215,129.97,129.96,43.84078432]
[1742147816917,3.370215,129.97,129.96,37.68508432]
[1742147818121,3.370215,129.97,129.96,18.89327389]
[1742147818727,9.525415,129.97,129.96,18.89327389]
[1742147819321,3.370215,129.97,129.96,18.89327389]
[1742147819624,9.525415,129.97,129.96,18.89327389]
[1742147821217,9.525415,129.97,129.91,285.974]
[1742147821218,9.525415,129.97,129.91,203.6]
[1742147821421,9.525415,129.97,129.93,18.89327389]
[1742147821611,9.525415,129.97,129.94,18.89327389]
[1742147822211,9.525415,129.97,129.95,18.89327389]
[1742147822411,3.370215,129.97,129.96,18.89327389]
[1742147822925,3.370215,129.97,129.96,37.68508432]
[1742147823608,3.370215,129.97,129.96,18.89327389]
[1742147824208,3.370215,129.97,129.96,43.84078432]
[1742147824614,3.370215,129.97,129.96,37.68508432]
[1742147825803,3.370215,129.97,129.96,43.84078432]
[1742147826729,3.370215,129.97,129.96,37.68508432]
[1742147826931,3.370215,129.97,129.96,43.84078432]
[1742147827118,3.370215,129.97,129.96,43.98294589]
[1742147828030,0.03,129.99,129.96,43.98294589]
[1742147828228,0.03,129.99,129.98,56.72051978]
[1742147828406,12.3033,130.07,129.99,18.933972]
[1742147828609,12.3033,130.07,130.03,18.89327389]
[1742147829535,18.89327389,130.05,130.0,18.89327389]
[1742147829927,6.1519,130.04,130.0,18.89327389]
[1742147830123,6.1519,130.04,130.01,18.89327389]
[1742147830624,6.1519,130.04,129.97,1.6246]
[1742147830625,6.1519,130.04,130.0,18.89327389]
[1742147831739,25.04517389,130.04,130.0,18.89327389]
[1742147831923,34.27207389,130.05,130.0,18.89327389]
[1742147832438,18.89327389,130.04,129.99,18.89327389]
[1742147833437,18.89327389,130.03,129.99,18.89327389]
[1742147833939,6.1528,130.02,129.99,18.89327389]
[1742147834234,6.1528,130.02,129.97,18.64964886]
[1742147834424,6.1528,130.02,129.99,18.89327389]
[1742147835130,6.1528,130.02,129.98,18.89327389]
[1742147836134,6.1528,130.02,129.99,18.89327389]
[1742147836840,7.7493,130.03,130.0,18.89327389]
[1742147837138,7.7493,130.03,130.0,12.08655297]
[1742147837921,0.03,130.02,130.0,12.08655297]
[1742147842142,0.03,130.02,130.01,12.08655297]
[1742147844946,0.03,130.02,130.01,37.0316634]
[1742147846046,0.03,130.02,130.01,30.8783634]
[1742147846927,0.03,130.02,130.01,12.08655297]
[1742147850062,0.03,130.02,130.0,12.08655297]
[1742147850649,0.03,130.02,130.01,12.08655297]
[1742147854047,0.03,130.02,130.01,37.0316634]
[1742147854752,0.03,130.02,130.01,30.8783634]
[1742147855259,0.03,130.02,130.01,12.08655297]
[1742147861157,0.03,130.02,129.98,0.14216157]
[1742147861346,0.03,130.02,129.99,12.08655297]
[1742147861958,0.03,130.02,129.99,12.14955297]
[1742147862456,0.03,130.02,130.0,12.08655297]
[1742147862850,0.03,130.02,129.99,12.14955297]
[1742147863849,0.03,130.02,130.0,12.08655297]
[1742147864760,34.03994531,130.12,130.02,18.64964886]
[1742147864956,46.12649828,130.12,130.07,12.08655297]
[1742147865163,20.0,130.09,130.07,12.08655297]
[1742147866745,18.23515297,130.11,130.06,12.08655297]
[1742147866944,18.23515297,130.11,130.05,12.08655297]
[1742147866945,12.08655297,130.1,130.05,12.08655297]
[1742147867262,12.08655297,130.1,130.06,12.08655297]
[1742147867757,20.0,130.08,130.04,12.08655297]
[1742147868557,20.0,130.08,130.06,12.08655297]
[1742147873870,20.0,130.08,130.07,12.08655297]
[1742147874165,20.0,130.08,130.06,12.08655297]
[1742147877469,26.15,130.08,130.02,25.00761043]
[1742147877669,26.15,130.08,130.05,12.08655297]
[1742147878059,26.15,130.08,130.04,12.08655297]
[1742147878871,26.15,130.08,130.02,18.85481043]
[1742147879161,26.15,130.08,130.05,12.08655297]
[1742147879546,26.15,130.08,130.06,12.08655297]
[1742147880172,26.15,130.08,130.05,12.08655297]
[1742147880967,26.15,130.08,130.04,12.08655297]
[1742147881172,38.23655297,130.08,130.04,12.08655297]
[1742147881473,53.61165297,130.08,130.03,12.08655297]
[1742147881675,12.08655297,130.07,130.03,12.08655297]
[1742147882344,6.151,130.06,130.03,12.08655297]
[1742147883374,6.151,130.06,130.04,12.08655297]
[1742147884173,6.151,130.06,130.03,12.08655297]
[1742147884375,12.08655297,130.06,130.02,0.063]
[1742147884551,12.08655297,130.05,130.02,0.063]
[1742147885874,6.1519,130.04,130.02,0.063]
[1742147887476,20.0,130.03,130.02,0.063]
[1742147887983,26.1524,130.03,130.02,0.063]
[1742147889859,0.14216157,130.02,129.99,0.063]
[1742147890060,12.08655297,130.0,129.99,0.063]
[1742147890261,12.22871454,130.0,129.99,0.063]
[1742147890773,19.10871454,130.0,129.99,0.0001]
[1742147891383,20.14216157,129.97,129.95,34.8457]
[1742147891556,12.08655297,129.96,129.95,34.8457]
[1742147891759,12.22871454,129.96,129.95,34.8457]
[1742147891956,18.38441454,129.96,129.95,34.8457]
[1742147893253,18.38441454,129.96,129.88,12.14955297]
[1742147893254,20.0,129.93,129.88,12.14955297]
[1742147893454,32.08655297,129.91,129.88,0.063]
[1742147894066,38.24505297,129.91,129.88,0.063]
[1742147894265,12.08655297,129.89,129.88,0.063]
[1742147894687,12.08655297,129.9,129.88,0.063]
[1742147896489,20.0,129.89,129.88,0.063]